{"text_format":"1","workbook":"xlsx","n_sheets":6,"sheets":["Objednávka","Verejné osvetlenie","Odberné miesta","Nemeraná spotreba","Zoznam subjektov","Výpočet PHZ"],"not_rendered":{"charts":0,"images":2,"macros":1,"external_links":0,"defined_names":0,"comments":0,"pivot_tables":0},"unopened":[],"bounds":{"document_bytes":16777216,"sheet_cells":100000,"rows_first":2000,"rows_last":500,"rows_between":2000,"halvings":0,"cell_chars":16384,"cell_head_chars":4096},"cells_cut":0,"cells_raw":0,"read":"whole","date_system":"1900"}

{"sheet":"Objednávka","index":0,"n_rows":112,"n_cols":36,"rows_kept":112,"cut":false,"hidden":false,"merged":[[78,2,78,3],[79,1,79,7],[80,1,80,7],[81,1,81,7],[56,4,56,5],[57,4,57,5],[59,1,59,7],[61,1,61,5],[70,1,70,3],[72,1,73,1],[72,2,73,2],[62,1,62,5],[63,1,63,5],[65,1,65,7],[67,1,67,3],[67,4,71,7],[68,1,68,3],[69,1,69,3],[72,4,76,7],[74,1,75,3],[76,1,76,3],[49,1,49,3],[50,4,50,5],[51,1,51,3],[51,4,51,5],[52,1,52,3],[52,4,52,5],[54,1,55,3],[54,4,54,5],[55,4,55,5],[105,1,105,7],[107,1,107,7],[108,1,108,7],[109,1,109,7],[110,1,110,7],[111,1,111,7],[97,1,97,7],[98,1,98,7],[99,1,99,7],[100,1,100,7],[101,1,101,7],[102,1,102,7],[103,1,103,7],[87,1,87,7],[88,1,88,7],[89,1,89,7],[90,1,90,7],[91,1,91,7],[92,1,92,7],[93,1,93,7],[95,1,95,7],[96,1,96,7],[29,29,29,32],[29,34,30,34],[29,35,30,35],[30,1,30,3],[82,1,82,7],[83,1,83,7],[84,1,84,7],[85,1,85,7],[86,1,86,7],[31,1,31,3],[32,1,32,3],[35,1,35,3],[37,1,37,7],[39,1,39,2],[39,3,39,4],[39,6,39,7],[41,1,41,4],[42,1,42,3],[43,1,43,3],[44,1,44,3],[45,1,45,3],[46,1,46,3],[47,1,47,3],[48,1,48,3],[24,12,24,13],[19,2,19,4],[19,5,19,7],[20,2,20,4],[20,5,20,7],[21,2,21,4],[21,5,21,7],[22,2,22,4],[28,1,28,3],[28,6,28,7],[15,6,15,7],[31,6,32,7],[33,6,33,7],[3,5,3,7],[7,5,7,7],[9,1,9,7],[11,6,11,7],[12,6,12,7],[13,1,14,1],[13,2,14,4],[15,1,16,1],[15,2,16,4],[16,5,16,7],[17,2,17,4],[17,5,17,7],[18,2,18,4],[18,5,18,7],[22,5,22,7],[24,1,24,7],[29,1,29,3],[0,5,0,7],[1,5,1,7],[2,3,2,4],[2,5,2,7],[3,3,3,4],[4,3,4,4],[5,3,5,4],[13,6,13,7],[14,6,14,7]]}
[null,null,null,null,null,"Dodávateľ odborných služieb:",null,null,null,null,null,null,null,null,null,null,0,{"$f":"IF(OR(S1=1,G55<0)=TRUE,IF(G55<0,1+(-1*G55),IF(G55>0.3,1-G55,1)),1)","v":1},0,null,null,null,null,null,null,null,{"$f":"IF(OR(G55<0,G55>0.3)=TRUE,1,0)","v":0}]
[null,null,null,null,null,"Slovenské centrum obstarávania, o. z."]
[null,null,null,"OBJEDNÁVKA",null,"Sídlo: Podzámocká 67/6, Bojnice 972 01"]
[null,null,null,"odborných služieb",null,"Prevádzka (poštová adresa):"]
[null,null,null,"verejného obstarávania",null,"Hurbanovo námestie 46, 972 01 Bojnice"]
[null,null,null,"pre komoditu:",null,"IČO: 42260515","DIČ: 2023510313"]
[null,null,null,null,null,"IČ DPH: SK2023510313"]
[null,null,null,null,null,"IBAN: SLSP, a.s. SK0509000000005028332376"]
[]
[null,"Elektrická energia ako burzová komodita"]
[]
[null,null,null,null,null,"Číslo objednávky SCO (nevypĺňajte) ","3723/1"]
[null,"Objednávateľ:","Verejný obstarávateľ",null,null,"SCO ID "]
[null,"Inštitúcia","Obec Oravská Jasenica",null,null,"Č. objednávky objednávateľa","24 / 2023"]
[null,null,null,null,null,"IČO","314714"]
[null,"Ulica, číslo ","Oravská Jasenica č. 142",null,null,"DIČ / IČ DPH",2020571729,null,null,null,0,200]
[null,null,null,null,null,"Banka, IBAN:  SK19 5600 0000 0040 0366 0002",null,null,null,null,3000,250]
[null,"Sídlo ","Oravská Jasenica ",null,null,null,null,null,null,null,6000,300]
[null,"PSČ ","029 64",null,null,"Zodpovedná osoba:",null,null,null,null,9000,350]
[null,"Štatutárny zástupca ","Ing Karol Graňák",null,null,"Meno: Ing. Karol Graňák",null,null,null,null,12000,400,null,null,null,null,{"$f":"IF(E29=1,1,IF(E29=2,1.3,1.5))","v":1.3}]
[null,"Telefón ","43/5525121",null,null,"Telefon: 0435525121",null,null,null,null,16000,450]
[null,"Mobil ",905255624,null,null,"Mobil: 0905255624",null,null,null,null,null,{"$f":"LOOKUP(E33,K16:K21,L16:L21)","v":450}]
[null,"E-mail ","starosta@oravskajasenica.sk",null,null,"E-mail: starosta@oravskajasenica.sk",null,null,null,null,null,{"$f":"IF(D40=\"Člen\",L22,L22*1.21)","v":544.5}]
[]
[null,"Týmto u Vás objednávame realizáciu verejného obstarávania na dodávateľa elektrickej energie pre našu inštitúciu"]
[]
[]
[]
[null,"Zadajte obdobie, na ktoré máte záujem zabezpečiť dodávatelia komodity (v rokoch)",null,null,2,{"$f":"IF(E29=1,\"rok\",IF(E29=2,\"roky\",\"roky\"))","v":"roky"},{"$f":"IF(E33<70000,\"Zákazka s nízkou hodnotou - nižšieho rozsahu\",IF(E33<180000,\"Zákazka s nízkou hodnotou - vyššieho rozsahu\",IF(E33<215000,\"Podlimitná zákazka\",\"Nadlimitná zákazka\")))","v":"Zákazka s nízkou hodnotou - nižšieho rozsahu"},null,null,null,{"$f":"IF(E33<70000,\"Zákazka s nízkou hodnotou\",IF(E33<221000,\"Podlimitná zákazka\",\"Nadlimitná zákazka\"))","v":"Zákazka s nízkou hodnotou"},null,null,null,null,null,null,null,null,null,null,null,null,null,null,null,"Údaje v žltom rámčeku a ani modré bunky v stĺpci M klient nevidí"]
[null,{"$f":"\"Celkový predpokladaný finančný objem na dodávku s distribúciou pre rok \" &IF(YEAR(H30)=1900,2017,YEAR(H30))","v":"Celkový predpokladaný finančný objem na dodávku s distribúciou pre rok 2024"},null,null,{"$f":"'Výpočet PHZ'!C15","v":17243.21},"€ bez DPH","Počnúc dňom: ","2024-01-01",null,null,null,null,null,null,null,null,null,null,null,null,null,null,null,null,null,null,null,null,1.21,"Zákazka s nízkou hodnotou do:",null,null,null,"Podlimit:","Nadlimit","Aktívna cena"]
[null,{"$f":"\"Celkový predpokladaný finančný objem na dodávku s distribúciou pre rok \"&IF(YEAR(H30)=1900,2018,YEAR(H30)+1)","v":"Celkový predpokladaný finančný objem na dodávku s distribúciou pre rok 2025"},null,null,{"$f":"'Výpočet PHZ'!D15","v":17513.86},"€ bez DPH","Výpoved. lehota:","2 mesiace",null,null,1,"Ing. Ľuboš Babarík\n+421 903 803 306\nobchod@i-sco.sk",null,null,null,null,null,null,null,null,null,null,null,null,null,null,null,"Názov","Číslo riadku",10000,40000,70000,180000,215000]
[null,{"$f":"\"Celkový predpokladaný finančný objem na dodávku s distribúciou pre rok \"&IF(YEAR(H30)=1900,2019,YEAR(H30)+2)","v":"Celkový predpokladaný finančný objem na dodávku s distribúciou pre rok 2026"},null,null,null,"€ bez DPH","Údaje o výpovednej lehote \ndôkladne skontrolovať!",null,null,null,2,"Ing.Zdenko Bičár\n+421 914 341 332\nobchod@i-sco.sk",null,null,null,null,null,null,null,null,null,null,null,null,null,null,null,{"$f":"LEFT($B$43,20)","v":"1) Odborná analýza, "},{"$f":"ROW($B$43)","v":43},88,176,249,398,440,470,{"$f":"IF($E$33<=$AD$31,AD32,IF($E$33<=$AE$31,AE32,IF($E$33<=$AF$31,AF32,IF($E$33<$AG$31,AG32,IF($E$33<$AH$31,AH32,AI32)))))","v":176}]
[null,"Predpokladaný finančný objem na obstarávanú komoditu s distribúciou spolu",null,null,{"$f":"'Výpočet PHZ'!C8","v":34757.07},"€ bez DPH",null,null,null,null,3,"Ing. Vladimír Fufaľ\n+421 911 803 102\nobchod@i-sco.sk",null,null,null,null,null,null,null,null,null,null,null,null,null,null,null,{"$f":"LEFT($B$44,20)","v":"2) Vypracovanie rámc"},{"$f":"ROW($B$44)","v":44},79,98,112,137,150,169,98]
[null,null,null,null,null,null,null,null,null,null,null,{"$f":"VLOOKUP(I40,$K$31:$L$33,2,0)","v":"Ing. Vladimír Fufaľ\n+421 911 803 102\nobchod@i-sco.sk"},null,null,null,null,null,null,null,null,null,null,null,null,null,null,null,{"$f":"LEFT($B$45,20)","v":"3) Vypracovanie súťa"},{"$f":"ROW($B$45)","v":45},99,154,236,365,400,449,154]
[null,null,null,null,null,null,null,null,null,null,null,null,null,null,null,null,null,null,null,null,null,null,null,null,null,null,null,{"$f":"LEFT($B$46,20)","v":"4) Počet odberných m"},{"$f":"ROW($B$46)","v":46},18,18,18,18,18,18,18]
[null,{"$f":"IF(E29=1,\"Celková spotreba za obstarávané obdobie\",IF(E29=2,\"Celková spotreba za obstarávané obdobia\",\"Celková spotreba za obstarávané obdobia\"))","v":"Celková spotreba za obstarávané obdobia"},null,null,{"$f":"IF('Výpočet PHZ'!B8=0,\"\",'Výpočet PHZ'!B8)","v":110.4},"MWh",null,null,null,null,null,null,null,null,null,null,null,null,null,null,null,null,null,null,null,null,null,{"$f":"LEFT($B$47,20)","v":"5) Počet ďalších prá"},{"$f":"ROW($B$47)","v":47},308,308,308,308,308,308,308]
[null,null,null,null,null,null,null,null,null,null,null,null,null,null,null,null,null,null,null,null,null,null,null,null,null,null,null,{"$f":"LEFT($B$48,20)","v":"6) Sledovanie komodi"},{"$f":"ROW($B$48)","v":48},22,28,33,43,47,47,28]
[null,"Upozornenie!!! Finančný objem obsahuje celkovú cenu elektrickej energie vrátane ceny za distribúciu elektriny vrátane prenosu elektriny a strát pri prenose elektriny, ostatných regulovaných položiek v zmysle rozhodnutí Úradu pre reguláciu sieťových odvetví, odvodu do Národného jadrového fondu a spotrebnej dane.",null,null,null,null,null,null,null,null,null,null,null,null,null,null,null,null,null,null,null,null,null,null,null,null,null,{"$f":"LEFT($B$49,20)","v":"7) Pevná sadzba za r"},{"$f":"ROW($B$49)","v":49},189,189,189,189,330,330,189]
[null,null,null,null,null,null,null,null,null,null,null,null,null,null,null,null,null,null,null,null,null,null,null,null,null,null,null,{"$f":"LEFT($B$50,20)","v":"8) Komplexné riadeni"},{"$f":"ROW($B$50)","v":50},88,88,88,88,100,120,88]
[null,"Člen SCO / Partner SCO:",null,"Partner",null,"Zodpovedný obchodný \nmanažér SCO:",{"$f":"L34","v":"Ing. Vladimír Fufaľ\n+421 911 803 102\nobchod@i-sco.sk"},null,3,"2) Vypracovanie súťažných podkladov (SP) pre verejné obstarávanie",null,null,null,null,null,null,null,null,null,null,null,null,null,null,null,null,null,{"$f":"OR(G55>0.3,G55<0)","v":false},{"$f":"OR(AND(AB40=TRUE,S1=1)=TRUE,AD40=TRUE)","v":false},{"$f":"G55<0","v":false}]
[null,null,null,null,null,null,null,null,null,"2) Metodiky na prieskum trhu"]
[null,"Objednaná položka",null,null,null,{"$f":"IF(C51=0,\"Jednotková cena\",\"Jednotková cena bez DPH\")","v":"Jednotková cena bez DPH"},{"$f":"IF(C51=0,\"Celková cena\",\"Celková cena bez DPH\")","v":"Celková cena bez DPH"},"Celková cena s DPH"]
[null,"1) Odborná analýza, návrh metodiky pre danú komoditu a návrh riešenia verejného obstarávania",null,null,"áno",{"$f":"ROUND($R$1*($Q$20*AJ32),0)","v":229},{"$f":"IF(E43=\"áno\",F43,0)","v":229},{"$f":"G43*1.2","v":274.8},null,"7) Pevná sadzba za realizáciu e-aukcie"]
[null,{"$f":"IF(G29=\"Zákazka s nízkou hodnotou\",AA44,AA45)","v":"2) Vypracovanie rámcovej dohody podľa Obchodného zákonníka, v zmysle Zákona č. 343/2015 Z. z. o verejnom obstarávaní a o zmene a doplnení niektorých zákonov"},null,null,"áno",127,127,152.4,null,"7) Pevná sadzba za realizáciu prieskumu trhu formou e-aukcie",null,null,null,null,null,null,null,null,null,null,null,null,null,null,null,null,"2) Vypracovanie výzvy na predkladanie ponúk, stanovenie podmienok pre proces verejného obstarávania v zmysle zákona č. 343/2015 Z.z. a podmienok dodávateľskej zmluvy pre verejného obstarávateľa v zmysle Obchodného zákonníka SR "]
[null,"3) Vypracovanie súťažných podkladov (SP) pre verejné obstarávanie / príležitostné spoločné obstarávanie",null,null,"áno",200,200,240,null,"8) Komplexné riadenie procesu verejného obstarávania / príležitostného spoločného obstarávania",null,null,null,null,null,null,null,null,null,null,null,null,null,null,null,null,"2) Vypracovanie rámcovej dohody podľa Obchodného zákonníka, v zmysle Zákona č. 343/2015 Z. z. o verejnom obstarávaní a o zmene a doplnení niektorých zákonov"]
[null,"4) Počet odberných miest - zahrnutie do SP v € / 1 OM",null,null,13,23,{"$f":"E46*F46","v":299},358.8,null,"8) Komplexné riadenie riadenie procesu prieskumu trhu"]
[null,"5) Počet ďalších právnych subjektov v zriaďovateľskej právomoci (s výnimkou objednávateľa)",null,null,0,400,0,0]
[null,"6) Sledovanie komoditnej burzy PXE a písomné stanovenie burzového dňa pre určenie ceny elektrickej energie v optimálnom čase na zazmluvneného dodávateľa a informovanie objednávateľa",null,null,"áno",36,{"$f":"IF(E48=\"áno\",F48,0)","v":36},43.199999999999996,null,"Faktúra číslo 2 za položky 2 - 7 bude vystavená po zverejnení oznámenia vo vestníku VO"]
[null,{"$f":"IF(E33>=1000,J43,J44)","v":"7) Pevná sadzba za realizáciu e-aukcie"},null,null,"áno",{"$f":"AJ38","v":189},189,226.79999999999998,null,"Faktúra číslo 2 bude vystavená za položky 2 - 9 po ukončení VO"]
[null,{"$f":"IF(E33>=1000,J45,J46)","v":"8) Komplexné riadenie procesu verejného obstarávania / príležitostného spoločného obstarávania"},null,null,"áno",{"$f":"ROUND($R$1*($Q$20*AJ39),0)","v":114},114,136.79999999999998]
[null,"Výška DPH:",0.2,null,"Celková cena objednávky:",null,{"$f":"SUM(G43:G50)","v":1194},1432.8]
[null,"Objednávateľ berie na vedomie kritickú situáciu na energetických burzách aktuálny nedostatok energetických",null,null,"Cena objednávky prepočítaná na jeden rok:",null,{"$f":"G56/E29","v":0},0]
[null," komodít a je si vedomý, že vysúťažené ceny môžu byť vyššie ako súčasné zazmluvnené ceny. ",null,null,"Priemerná cena na 1 právny subjekt za rok:",null,{"$f":"G58","v":0},0]
[]
[null,"Objednávateľ, ak sa nedohodne inak, zodpovedá za včasné a správne vypovedanie zmluvy\nso súčastným dodávateľom. ",null,null,null,null,null,null,null,null,null,null,{"$f":"G55","v":0}]
[]
[]
[]
[]
[null,"Dodávateľ je platcom DPH. Splatnosť faktúr je 7 dní odo dňa ich doručenia."]
[null,null,null,null,null,null,"Cena bez DPH","Cena s DPH"]
[null,{"$f":"\"Faktúra číslo 1 za položku \"&IF(G29=\"Zákazka s nízkou hodnotou\",\"1 a 2\",1)&\" bude vystavená na objednávateľa ihneď po spracovaní dát a potvrdení akceptácie objednávky dodávateľom\"","v":"Faktúra číslo 1 za položku 1 bude vystavená na objednávateľa ihneď po spracovaní dát a potvrdení akceptácie objednávky dodávateľom"},null,null,null,null,{"$f":"IF($AC$40=TRUE,IF($K$29=\"Zákazka s nízkou hodnotou\",SUM(G43:G44),G43),IF(K29=\"Zákazka s nízkou hodnotou\",SUM(G43:G44)*(1-$G$55),G43*(1-$G$55)))","v":356},{"$f":"G62*1.2","v":427.2}]
[null,{"$f":"\"Faktúra číslo 2 za položky \"&IF(G29=\"Zákazka s nízkou hodnotou\",\"3 - 8\",\"2 - 6\")&\" bude vystavená po \"&IF(G29=\"Zákazka s nízkou hodnotou\",\"po zaslaní výzvy na predkladanie ponúk pre zákazku s nízkou hodnotou a jej vyhodnotením.\",\"zverejnení oznámenia vo vestníku VO.\")","v":"Faktúra číslo 2 za položky 2 - 6 bude vystavená po zverejnení oznámenia vo vestníku VO."},null,null,null,null,{"$f":"IF($AC$40=TRUE,IF($K$29=\"Zákazka s nízkou hodnotou\",SUM(G45:G50),SUM(G44:G48)),IF(K29=\"Zákazka s nízkou hodnotou\",SUM(G45:G50)*(1-$G$55),SUM(G44:G48)*(1-$G$55)))","v":838},1005.5999999999999]
[null,"Faktúra číslo 3 za položky 7 - 8 bude vystavená po ukončení VO alebo po vyhodnotení výsledkov zákazky s nízkou hodnotou (po úhrade faktúry bude objednávateľovi odoslaná kompletná dokumentácia verejného obstarávania)",null,null,null,null,{"$f":"IF($AC$40=TRUE,IF($K$29=\"Zákazka s nízkou hodnotou\",0,SUM(G49:G50)),IF(K29=\"Zákazka s nízkou hodnotou\",0,SUM(G49:G50)*(1-$G$55)))","v":0},{"$f":"(G64*$C$51)+G64","v":0}]
[]
[null,"Súčasťou tejto objednávky je tabuľka odberných miest a predpokladaných spotrieb na na obstatávané obdobie."]
[null,"Dolupodpísaný objednávateľ (štatutárny orgán objednávateľa) čestne vyhlasujem, že:"]
[null,"1/ Všetky informácie obsiahnuté v objednávke a v príkaznej zmluve sú úplné, pravdivé a správne.",null,null,"Pečiatka a podpis za verejného obstarávateľa:"]
[null,"2/ Som si vedomý skutočnosti, že nesiem úplnú zodpovednosť za následky uvedenia nesprávnych údajov."]
[null,"3/ Svojím podpisom súhlasím so všeobecnými obchodnými podmienkami uvedenými na zadnej strane \n     tejto objednávky."]
[null,"4/ Akceptujem posielanie faktúr a potvrdenie objednávky elektronickou formou."]
[]
[null,"Dňa:","2023-03-27",null,"Pečiatka a podpis za dodávateľa odborných služieb (SCO):"]
[]
[null,"Pred odoslaním podpísanej objednávky poštou, Vás prosíme o jej zoscanovanie a zaslanie na centrálu SCO e-mailom na obchod@i-sco.sk"]
[]
[null,"Ďakujeme za spoluprácu."]
[]
[]
[null,"Všeobecné obchodné podmienky"]
[]
[null,"Práva a povinnosti Dodávateľa odborných služieb"]
[]
[null,"Práva a povinnosti Slovenského centra obstarávania – ďalej len “Dodávateľ odborných služieb” príležitostného spoločného obstarávania."]
[]
[null,"1. Dodávateľ odborných služieb sa zaväzuje príležitostné spoločné obstarávania vykonávať v zmysle aktuálnej platnej legislatívy Európskej únie a Slovenskej republiky, najmä však podľa zákona č. 343/2015 Z.Z o verejnom obstarávaní a o zmene a doplnení niektorých zákonov v znení neskorších predpisov. "]
[null,"2. Dodávateľ odborných služieb sa zaväzuje svojimi administrátorskými zásahmi do výberových konaní v príležitostných spoločných obstarávaniach nezvýhodňovať ktoréhokoľvek dodávateľa pred ostatnými dodávateľmi. "]
[null,"3. Dodávateľ odborných služieb je povinný bezodkladne informovať všetkých účastníkov o udalostiach, ktoré by mohli obmedziť riadny priebeh príležitostného spoločného obstarávania a následne podniknúť adekvátne kroky vedúce k ich náprave. "]
[null,"4. Dodávateľ odborných služieb sa zaväzuje poskytnúť službu na základe objednávky na príležitostné spoločné obstarávanie v dohodnutom rozsahu a kvalite, nezodpovedá však za vznik udalostí, ktoré akýmkoľvek spôsobom znemožnia účastníkovi riadne zapojenie sa do výberového konania a boli zavinené treťou osobou. Dodávateľ odborných služieb tiež nezodpovedá za kvalitu a dostupnosť internetových služieb účastníka. "]
[null,"5. V prípade realizácie verejného obstarávania podľa § 117 Zákona 343/2015 Z. z. a jeho novelizácií sa proces verejného obstarávania bude realizovať bez rámcovej dohody. "]
[null,"6. Dodávateľ odborných služieb sa zaväzuje, že vhodnými opatreniami zabezpečí dôvernosť všetkých údajov získaných od účastníka a bude ich používať len na účely spojené s príležitostným spoločným obstarávaním, ku ktorému zadávateľ svojou objednávkou pristupuje, resp. pre svoje interné potreby. "]
[null,"7. Dodávateľ odborných služieb zodpovedá za náhradu škôd spôsobených porušením zmluvných, resp. mimozmluvných podmienok len v prípade, že k nemu došlo úmyselne z jeho strany, pokiaľ nie je v týchto podmienkach stanovené inak.   "]
[]
[null,"Práva a povinnosti objednávateľa "]
[]
[null,"1. Objednávateľ bude poskytovať súčinnosť potrebnú k uskutočneniu predmetu plnenia Dodávateľom odborných služieb, ktorou je  včasné poskytnutie úplných informácií (najneskôr 14 dní pred zverejnením súťažných podkladov príležitostného spoločného obstarávania) podľa pokynov poskytovateľa týkajúcich sa špecifikácií, cien, objemu, kvality predmetu nákupu alebo predávaného majetku a iných informácií potrebných k príprave a uskutočneniu komplexného procesu príležitostného spoločného obstarávania. Objednávateľ sa zaväzuje dodržať všetky doporučené termíny, metodické postupy a pokyny potrebné pre prípravu a realizáciu príležitostného spoločného obstarávania, ktoré odporučí Dodávateľovi odborných služieb. "]
[null,"2. Objednávateľ zodpovedá za správnosť ním poskytnutých údajov týkajúcich sa predmetu príležitostného spoločného obstarávania a obchodných podmienok súvisiacich s výberovým konaním. Neoddeliteľnou súčasťou tejto objednávky je zmluva o Príležitostnom spoločnom obstarávaní podľa § 16 zákona č. 343/2015 Zb. "]
[null,"3. Objednávateľ plne zodpovedá za prípadnú škodu, ktorá vznikne Dodávateľovi odborných služiebovi, resp. dodávateľovi v súvislosti s ním umožneným prístupom tretej osoby k informáciám týkajúcich sa príležitostného spoločného obstarávania. "]
[null,"4. Objednávateľ má právo vykonať zmenu v špecifikácii predmetu príležitostného spoločného obstarávania v jeho priebehu len v prípade, že táto zmena neovplyvní riadny priebeh výberového konania a je plne v súlade so zákonom 343/2015 Z.z. "]
[null,"5. Výsledky príležitostného spoločného obstarávania nie sú pre objednávateľa záväzné v prípade, ak je ponuka úspešného uchádzača v rozpore s podmienkami uvedenými v súťažných podkladoch, resp. vo výzve na účasť. "]
[null,"6. Objednávateľ je povinný uhradiť dohodnutú cenu za poskytovanú službu na základe ceny, ktorá vzišla pri vyplnení objednávky."]
[null,"7. V prípade, že konaním objednávateľa vznikne Dodávateľovi odborných služiebovi, resp. dodávateľovi škoda, je tento oprávnený nárokovať si u objednávateľa jej náhradu v plnej výške. "]
[null,"8. Objednávateľ dáva Dodávateľovi odborných služiebovi súhlas k použitiu jeho e-mailových adries uložených v databáze Slovenského centra obstarávania k zasielaniu e-mailov súvisiacich s činnosťou združenia."]
[null,"9. Objednávateľ sa zaväzuje neposkytovať tretím stranám know–how, ktoré Dodávateľ odborných služieb používa. V prípade preukázania porušenia tohto bodu zmluvy je objednávateľ povinný uhradiť Dodávateľovi odborných služiebovi vzniknutú škodu v plnej výške a k tomu sankciu vo výške 7.000 €"]
[]
[null,"Záverečné ustanovenia "]
[]
[null,"1. Právne vzťahy medzi Dodávateľom odborných služieb a účastníkmi príležitostných spoločných obstarávaní sa riadia právnym poriadkom Slovenskej republiky. "]
[null,"2. Akékoľvek zmeny a doplnky týchto všeobecne platných obchodných podmienok  možno urobiť len písomnou formou, inak sú neplatné. "]
[null,"3. Zmluvné strany sa zaväzujú, že všetky prípadné spory, ktoré vzniknú v súvislosti s touto zmluvou, budú riešiť vzájomnou dohodou s cieľom - zachovať dobré obchodné vzťahy."]
[null,"4. Zmluvné strany svojimi podpismi potvrdzujú, že sú s jej obsahom oboznámené a že túto objednávku uzatvárajú dobrovoľne na základe svojej slobodnej vôle, nie v tiesni, ani za nápadne nevyhovujúcich podmienok."]
[null,"5. Tieto Všeobecné obchodné podmienky pre príležitostné spoločné obstarávanie sú platné a účinné od 18.4.2016 v plnom rozsahu pre všetkých účastníkov príležitostných spoločných obstarávaní realizovaných  Slovenským centrom obstarávania. V prípade, že nastane zmena v týchto podmienkach v priebehu niektorého príležitostného spoločného obstarávania vyhláseného prostredníctvom Slovenského centra obstarávania, tá sa na prebiehajúce výberové konanie nevzťahuje. "]

{"sheet":"Verejné osvetlenie","index":1,"n_rows":31,"n_cols":28,"rows_kept":31,"cut":false,"hidden":false,"merged":[[11,2,11,6],[15,0,17,0],[15,1,17,1],[15,2,17,2],[15,3,17,3],[15,4,17,4],[15,25,16,26],[15,27,17,27],[29,0,31,2],[30,9,30,10],[30,12,30,13],[30,15,30,16],[15,5,16,8],[15,9,16,11],[15,12,16,14],[15,15,16,17],[15,24,16,24],[3,1,3,6],[4,1,4,6],[6,2,6,6],[6,30,10,32],[7,2,7,6],[8,2,8,6],[9,2,9,6],[10,2,10,6]]}
["vf"]
[]
[]
[null,"Podklady o spotrebách elektrickej energie\n všetkých odberných miest"]
[null,"podklad pre výberové konanie na obstarávanie elektrickej energie"]
[]
[null,"Odberateľ:","Obec Oravská Jasenica"]
[null,"Adresa: ","Oravská Jasenica 142"]
[null,"IČO:",314714]
[null,"Podklady vyplnil:","Ing. Karol Graňák"]
[null,"Telefonický kontakt:",905355624]
[null,"Mailový kontakt:","starosta@oravskajasenica.sk"]
[null,"Počet riadkov"]
[]
[]
["P.č.","Adresa miesta spotreby","Názov odberného miesta","EIC kód","Meno subjektu\n\n( vypisujte, iba ak obstarávate pre viac subjektov)","Súčastný dodávateľ a platné zmluvy.",null,null,null,"Spotreba za rok 2023 v MWh\n(Informatívne údaje)",null,null,"Predpokladaná spotreba za rok 2024 v MWh\nzáväzné údaje do súťažných podkladov",null,null,"Predpokladaná spotreba za rok 2025 v MWh\nzáväzné údaje do súťažných podkladov",null,null,{"$f":"\"Predpokladaná spotreba za rok \"&IF(YEAR(Objednávka!H30)=1900,2017,YEAR(Objednávka!H30))  &\" v MWh záväzné údaje do súťažných podkladov\"","v":"Predpokladaná spotreba za rok 2024 v MWh záväzné údaje do súťažných podkladov"},null,null,"Predpokladaná spotreba za rok 2024 v MWh\nzáväzné údaje do súťažných podkladov",null,null,"Napätie","Nízke napätie",null,"Typ merania\nA-priebehové meranie \n     s diaľkovým odpočtom\nB-priebehové meranie \nbez ďialkového odpočtu\nC-bez priebehového merania"]
[]
[null,null,null,null,null,"Meno\ndodávateľa","Trvanie súčasnej zmluvy do","Výpovedná lehota","Dátum účinnosti novej dodávky","JT","VT","NT","JT","VT","NT","JT","VT","NT","JT","VT","NT","JT","VT","NT","NN","Hodnota ističa","Distribučná tarifa"]
["P.č.","Adresa miesta spotreby","Názov odberného miesta","EIC kód","Meno subjektu","Meno\ndodávateľa","Trvanie súčasnej zmluvy do","Výpovedná lehota","Dátum účinnosti novej dodávky","JT 22","VT 22","NT 22","JT 23","VT 23","NT 23","JT 24","VT 24","NT 24","Stĺpec25","Stĺpec26","Stĺpec27","Stĺpec28","Stĺpec29","Stĺpec30","Napätie","Hodnota ističa","Distribučná tarifa","Typ merania"]
[1,"Oravská Jasenica 302/AT","ver. osvetlenie č.302","24ZSS3207935000K",null,"SSE a.s.","12/31/2023","2 mesiace","2024-01-01",null,4,null,null,4.2,null,null,4.2,null,null,null,null,null,null,null,null,"3x40","C10","A"]
[2,"Oravská Jasenica 83AI","ver. osvetlenie č.83","24ZSS3207925000Q",null,"SSE a.s.","12/31/2023","2 mesiace","2024-01-01",null,14,null,null,14.2,null,null,14.2,null,null,null,null,null,null,null,null,"3x32","C10","A"]
[3,"Oravská Jasenica 3616","ver. osvetlenie  č.3616","24ZSS45306750005",null,"SSE a.s.","12/31/2023","2 mesiace ","2024-01-01",null,3,null,null,3.1,null,null,3.1,null,null,null,null,null,null,null,null,"3x25","C10","C"]
[4,"Oravská Jasenica 459","ver. osvetlenie č.459","24ZSS3302146000L",null,"SSE a.s.","12/31/2023","2 mesiace","2024-01-01",null,5.5,null,null,5.8,null,null,5.8,null,null,52,null,null,52,null,null,"3x25","C10","C"]
[5,null,null,null,null,null,null,null,null,null,null,null,null,null,null,null,null,null,null,null,13,null,null,13]
[6]
[7]
[{"$f":"A26+1","v":8}]
[9]
[10]
["Pre pridanie ďalších riadkov, do bunky \"C13\" vpíšte počet riadkou a kliknite na tlačidlo\" Pridaj riadky\"",null,null,null,null,null,null,null,null,{"$f":"SUM('Verejné osvetlenie'!$J$20:$J$29)","v":0},{"$f":"SUM('Verejné osvetlenie'!$K$20:$K$29)","v":26.5},{"$f":"SUM('Verejné osvetlenie'!$L$20:$L$29)","v":0},{"$f":"SUM('Verejné osvetlenie'!$M$20:$M$29)","v":0},{"$f":"SUM('Verejné osvetlenie'!$N$20:$N$29)","v":27.3},{"$f":"SUM('Verejné osvetlenie'!$O$20:$O$29)","v":0},{"$f":"SUM('Verejné osvetlenie'!$P$20:$P$29)","v":0},{"$f":"SUM('Verejné osvetlenie'!$Q$20:$Q$29)","v":27.3},{"$f":"SUM('Verejné osvetlenie'!$R$20:$R$29)","v":0},{"$f":"SUM('Verejné osvetlenie'!$Y$20:$Y$29)","v":0},{"$f":"SUM('Verejné osvetlenie'!$Z$20:$Z$29)","v":0},{"$f":"SUM('Verejné osvetlenie'!$AA$20:$AA$29)","v":0},{"$f":"SUM('Verejné osvetlenie'!$AB$20:$AB$29)","v":0},{"$f":"SUM(#REF!)","v":{"$error":"#REF!"}},{"$error":"#REF!"}]
[null,null,null,null,null,null,null,null,null,"spolu za všetky tarify",null,{"$f":"J30+K30+L30","v":26.5},"spolu za všetky tarify",null,{"$f":"M30+N30+O30","v":27.3},"spolu za všetky tarify",null,{"$f":"P30+Q30+R30","v":27.3},"Spolu za všetky tarify",null,{"$f":"SUM(S30:U30)","v":0},"Spolu za všetky tarify",null,{"$f":"SUM(V30:X30)","v":{"$error":"#REF!"}}]

{"sheet":"Odberné miesta","index":2,"n_rows":30,"n_cols":50,"rows_kept":30,"cut":false,"hidden":false,"merged":[[29,0,31,2],[15,44,16,44],[15,45,16,46],[15,47,16,48],[15,49,17,49],[15,5,16,8],[15,9,16,14],[15,15,16,15],[15,16,16,21],[15,22,16,22],[15,23,16,42],[15,43,16,43],[9,2,9,6],[10,50,11,51],[10,2,10,6],[11,2,11,6],[15,0,17,0],[15,1,17,1],[15,2,17,2],[15,3,17,3],[15,4,17,4],[3,1,3,6],[4,1,4,6],[6,2,6,6],[7,2,7,6],[8,2,8,6]]}
[]
[]
[]
[null,"Podklady o spotrebách elektrickej energie\n všetkých odberných miest"]
[null,"podklad pre výberové konanie na obstarávanie elektrickej energie"]
[null,null,null,null,null,null,null,null,"JT","Jednotarif",null,"NN","nízke napätie"]
[null,"Odberateľ:",{"$f":"IF('Verejné osvetlenie'!C7:G7=0,\"Hlavičku vyplnte na hárku verejné osvetlenie.\",'Verejné osvetlenie'!C7:G7)","v":"Obec Oravská Jasenica"},null,null,null,null,null,"VT","vysoký tarif",null,"VN","vysoké napätie"]
[null,"Adresa: ",{"$f":"IF('Verejné osvetlenie'!C8:G8=0,\"\",'Verejné osvetlenie'!C8:G8)","v":"Oravská Jasenica 142"},null,null,null,null,null,"NT","nízky tarif",null,"EIC kód","viď. zmluva"]
[null,"IČO:",{"$f":"IF('Verejné osvetlenie'!C9:G9=0,\"\",'Verejné osvetlenie'!C9:G9)","v":314714},null,null,null,null,null,"AKU NT","elektrické vykurovanie - nízky tarif"]
[null,"Podklady vyplnil:",{"$f":"IF('Verejné osvetlenie'!C10:G10=0,\"\",'Verejné osvetlenie'!C10:G10)","v":"Ing. Karol Graňák"},null,null,null,null,null,"AKU VT","elektrické vykurovanie - vysoký tarif"]
[null,"Telefonický kontakt:",{"$f":"IF('Verejné osvetlenie'!C11:G11=0,\"\",'Verejné osvetlenie'!C11:G11)","v":905355624},null,null,null,null,null,"WT","víkendový tarif (víkendy a sviatky)"]
[null,"Mailový kontakt:",{"$f":"IF('Verejné osvetlenie'!C12:G12=0,\"\",'Verejné osvetlenie'!C12:G12)","v":"starosta@oravskajasenica.sk"}]
[null,"Počet riadkov"]
[]
[]
["P. č.","Adresa miesta spotreby","Názov odberného miesta","EIC kód","Meno subjektu\n\n( vypisujte, iba ak obstarávate pre viac subjektov)","Súčastný dodávateľ a platné zmluvy. ",null,null,null,"Spotreba za rok 2023 v MWh\nInformatívne údaje",null,null,null,null,null,"Spotreba spolu","Predpokladaná spotreba za rok 2024 v MWh\nzáväzné údaje do súťažných podkladov",null,null,null,null,null,"Spotreba spolu","Predpokladaná spotreba za rok 2025 v MWh\nzáväzné údaje do súťažných podkladov",null,null,null,null,null,null,null,null,null,null,null,null,null,null,null,null,null,null,null,"Spotreba spolu","Napätie","Vysoké napätie",null,"Nízke napätie",null,"Typ merania\nA-priebehové meranie \n     s diaľkovým odpočtom\nB-priebehové meranie \nbez ďialkového odpočtu\nC-bez priebehového merania"]
[]
[null,null,null,null,null,"Meno\ndodávateľa","Trvanie súčasnej zmluvy do","Výpovedná lehota","Dátum účinnosti novej dodávky","JT","VT","NT","WT","AKU/VT","AKU/NT","MWh","JT","VT","NT","WT","AKU/VT","AKU/NT","\nMWh","JT","VT","NT","WT","AKU/VT","AKU/NT","\nMWh","JT","VT","NT","WT","AKU/VT","AKU/NT","\nMWh","JT","VT","NT","WT","AKU/VT","AKU/NT","\nMWh","NN / VN","Rezervovaná kapacita","Maximálna rezervovaná kapacita","Hodnota ističa","Distribučná tarifa"]
["P.č.","Adresa miesta spotreby","Názov odberného miesta","EIC kód","Meno subjektu","Meno dodávateľa","Trvanie súčasnej zmluvy do","Výpovedná lehota","Dátum účinnosti novej dodávky","JT 22","VT 22","NT 22","WT 22","AKU/VT 22","AKU/NT 22","Spotreba spolu 22","JT 23","VT 23","NT 23","WT 23","AKU/VT 23","AKU/NT 23","Spotreba spolu 23","JT 24","VT 24","NT 234","WT 235","AKU/VT 236","AKU/NT 237","Spotreba spolu 238","JT 239","VT 2310","NT 2311","WT 2312","AKU/VT 2313","AKU/NT 2314","Spotreba spolu 2315","JT 2316","VT 2317","NT 24","WT 24","AKU/VT 24","AKU/NT 24","Spotreba spolu 24","NN/VN","Rezervovaná kapacita","Maximálna rezervovaná kapacita","Hodnota ističa","Distribučná tarifa","Typ merania"]
[1,"Oravská Jasenica 126, 029 64 Oravská Jasenica","Obecný úrad","24ZSS3207924000V",null,"SSE a.s.","2023-12-31","2 mesiace","2024-01-01",null,7,null,null,null,null,{"$f":"SUM(J20:O20)","v":7},null,7,null,null,null,null,{"$f":"SUM('Odberné miesta'!$Q20:$V20)","v":7},null,7,null,null,null,null,null,null,null,null,null,null,null,null,null,null,null,null,null,null,{"$f":"SUM(X20:AQ20)","v":7},"NN",null,null,"3x25","C1","A"]
[{"$f":"A20+1","v":2},"Oravská Jasenica 142, 029 64 Oravská Jasenica - Oravská Jasenica","Kultúrny dom","24ZSS32079400002",null,"SSE a.s.","2023-12-31","2 mesiace","2024-01-01",null,4,1.1000000000000001,null,null,null,5.0999999999999996,null,4,1.3,null,null,null,{"$f":"SUM('Odberné miesta'!$Q21:$V21)","v":5.3},null,4,null,null,null,null,null,null,null,null,null,null,null,null,null,null,1.3,null,null,null,5.3,"NN",null,null,"3x100","C5","A"]
[3,"Oravská Jasenica , 029 64 Oravská Jasenica ","Zberný dvor","24ZSS45330970001",null,"SSE a.s.","2023-12-31","2 mesiace","2024-01-01",null,3,null,null,null,null,3,null,3,null,null,null,null,{"$f":"SUM('Odberné miesta'!$Q22:$V22)","v":3},null,3,null,null,null,null,null,null,null,null,null,null,null,null,null,null,null,null,null,null,3,"NN",null,null,"3x25","C1","C"]
[4,"Oravská Jasenica 268, 029 64 Oravská Jasenica","Pamätná izba","24ZSS3207919000C",null,"SSE a.s.","2023-12-31","2 mesiace","2024-01-01",null,0.1,null,null,null,null,0.1,null,0.3,null,null,null,null,{"$f":"SUM('Odberné miesta'!$Q23:$V23)","v":0.3},null,0.3,null,null,null,null,null,null,null,null,null,null,null,null,null,null,null,null,null,null,0.3,"NN",null,null,"1x16","C1","C"]
[5,"Oravská Jasenica 450, 029 64 Oravská Jasenica","Bytovka","24ZSS3304382000O",null,"SSE a.s.","2023-12-31","2 mesiace","2024-01-01",null,0.3,null,null,null,null,0.3,null,0.3,null,null,null,null,{"$f":"SUM('Odberné miesta'!$Q24:$V24)","v":0.3},null,0.3,null,null,null,null,null,null,null,null,null,null,null,null,null,null,null,null,null,null,0.3,"NN",null,null,"3x16","C1","C"]
[6,"Oravská Jasenica 238, 029 64 Oravská Jasenica","Dom smútku","24ZSS3207927000G",null,"SSE a.s.","2023-12-31","2 mesiace","2024-01-01",null,1.7,0.8,null,null,null,2.5,null,1.7,0.8,null,null,null,{"$f":"SUM('Odberné miesta'!$Q25:$V25)","v":2.5},null,1.7,null,null,null,null,null,null,null,null,null,null,null,null,null,null,0.8,null,null,null,2.5,"NN",null,null,"3x16","C5","C"]
[{"$f":"A25+1","v":7},"Oravská Jasenica 347, 029 64 Oravská Jasenica","Sklady TJ","24ZSS32079300008",null,"SSE a.s.","2023-12-31","2 mesiace","2024-01-01",null,5.5,null,null,null,null,5.5,null,5.5,null,null,null,null,{"$f":"SUM('Odberné miesta'!$Q26:$V26)","v":5.5},null,5.5,null,null,null,null,null,null,null,null,null,null,null,null,null,null,null,null,null,null,5.5,"NN",null,null,"3x25","C2","A"]
[8,"Oravská Jasenica 283, 029 64 Oravská Jasenica","Požiarná zbrojnica","24ZSS3207950000X",null,"SSE a.s.","2023-12-31","2 mesiace","2024-01-01",null,2,null,null,null,null,2,null,2,null,null,null,null,{"$f":"SUM('Odberné miesta'!$Q27:$V27)","v":2},null,2,null,null,null,null,null,null,null,null,null,null,null,null,null,null,null,null,null,null,2,"NN",null,null,"3x25","C2","C"]
[9,"Oravská Jasenica 143, 029 64 Oravská Jasenica","Telocvičňa","24ZSS46064620009",null,"SSE a.s.","2023-12-31","2 mesiace","2024-01-01",null,2,null,null,null,null,2,null,2,null,null,null,null,{"$f":"SUM('Odberné miesta'!$Q28:$V28)","v":2},null,2,null,null,null,null,null,null,null,null,null,null,null,{"$f":"SUM(AE28:AJ28)","v":0},null,null,null,null,null,null,2,"NN",null,null,"3x25","C3","A"]
[10,null,null,null,null,null,null,null,null,null,null,null,null,null,null,0,null,null,null,null,null,null,{"$f":"SUM('Odberné miesta'!$Q29:$V29)","v":0},null,null,null,null,null,null,null,null,null,null,null,null,null,0,null,null,null,null,null,null,0]
["Pre pridanie ďalších riadkov, do bunky \"C13\" vpíšte počet riadkou a kliknite na tlačidlo\" Pridaj riadky\"",null,null,null,null,null,null,null,null,{"$f":"SUM('Odberné miesta'!$J$20:$J$29)","v":0},{"$f":"SUM('Odberné miesta'!$K$20:$K$29)","v":25.6},{"$f":"SUM('Odberné miesta'!$L$20:$L$29)","v":1.9000000000000001},{"$f":"SUM('Odberné miesta'!$M$20:$M$29)","v":0},{"$f":"SUM('Odberné miesta'!$N$20:$N$29)","v":0},{"$f":"SUM('Odberné miesta'!$O$20:$O$29)","v":0},{"$f":"SUM('Odberné miesta'!$P$20:$P$29)","v":27.5},{"$f":"SUM('Odberné miesta'!$Q$20:$Q$29)","v":0},{"$f":"SUM('Odberné miesta'!$R$20:$R$29)","v":25.8},{"$f":"SUM('Odberné miesta'!$S$20:$S$29)","v":2.1},{"$f":"SUM('Odberné miesta'!$T$20:$T$29)","v":0},{"$f":"SUM('Odberné miesta'!$U$20:$U$29)","v":0},{"$f":"SUM('Odberné miesta'!$V$20:$V$29)","v":0},{"$f":"SUM('Odberné miesta'!$W$20:$W$29)","v":27.900000000000002},{"$f":"SUM('Odberné miesta'!$X$20:$X$29)","v":0},{"$f":"SUM('Odberné miesta'!$Y$20:$Y$29)","v":25.8},{"$f":"SUM('Odberné miesta'!$Z$20:$Z$29)","v":0},{"$f":"SUM('Odberné miesta'!$AA$20:$AA$29)","v":0},{"$f":"SUM('Odberné miesta'!$AB$20:$AB$29)","v":0},{"$f":"SUM('Odberné miesta'!$AC$20:$AC$29)","v":0},{"$f":"SUM('Odberné miesta'!$AD$20:$AD$29)","v":0},{"$f":"SUM('Odberné miesta'!$AE$20:$AE$29)","v":0},{"$f":"SUM('Odberné miesta'!$AF$20:$AF$29)","v":0},{"$f":"SUM('Odberné miesta'!$AG$20:$AG$29)","v":0},{"$f":"SUM('Odberné miesta'!$AH$20:$AH$29)","v":0},{"$f":"SUM('Odberné miesta'!$AI$20:$AI$29)","v":0},{"$f":"SUM('Odberné miesta'!$AJ$20:$AJ$29)","v":0},{"$f":"SUM('Odberné miesta'!$AK$20:$AK$29)","v":0},{"$f":"SUM('Odberné miesta'!$AL$20:$AL$29)","v":0},{"$f":"SUM('Odberné miesta'!$AM$20:$AM$29)","v":0},{"$f":"SUM('Odberné miesta'!$AN$20:$AN$29)","v":2.1},{"$f":"SUM('Odberné miesta'!$AO$20:$AO$29)","v":0},{"$f":"SUM('Odberné miesta'!$AP$20:$AP$29)","v":0},{"$f":"SUM('Odberné miesta'!$AQ$20:$AQ$29)","v":0},{"$f":"SUM('Odberné miesta'!$AR$20:$AR$29)","v":27.900000000000002}]

{"sheet":"Nemeraná spotreba","index":3,"n_rows":29,"n_cols":11,"rows_kept":29,"cut":false,"hidden":false,"merged":[[28,0,30,2],[15,0,16,0],[15,1,16,1],[15,2,16,2],[15,3,16,3],[15,4,16,4],[9,2,9,6],[15,5,15,8],[15,9,16,9],[15,10,16,10],[10,2,10,6],[11,2,11,6],[3,1,3,6],[4,1,4,6],[6,2,6,6],[7,2,7,6],[7,13,8,16],[8,2,8,6]]}
[]
[]
[]
[null,"Podklady o spotrebách elektrickej energie\n všetkých odberných miest"]
[null,"podklad pre výberové konanie na obstarávanie elektrickej energie"]
[]
[null,"Odberateľ:",{"$f":"IF('Verejné osvetlenie'!C7:G7=0,\"Hlavičku vyplnte na hárku verejné osvetlenie.\",'Verejné osvetlenie'!C7:G7)","v":"Obec Oravská Jasenica"}]
[null,"Adresa: ",{"$f":"IF('Verejné osvetlenie'!C8:G8=0,\"\",'Verejné osvetlenie'!C8:G8)","v":"Oravská Jasenica 142"}]
[null,"IČO:",{"$f":"IF('Verejné osvetlenie'!C9:G9=0,\"\",'Verejné osvetlenie'!C9:G9)","v":314714}]
[null,"Podklady vyplnil:",{"$f":"IF('Verejné osvetlenie'!C10:G10=0,\"\",'Verejné osvetlenie'!C10:G10)","v":"Ing. Karol Graňák"}]
[null,"Telefonický kontakt:",{"$f":"IF('Verejné osvetlenie'!C11:G11=0,\"\",'Verejné osvetlenie'!C11:G11)","v":905355624}]
[null,"Mailový kontakt:",{"$f":"IF('Verejné osvetlenie'!C12:G12=0,\"\",'Verejné osvetlenie'!C12:G12)","v":"starosta@oravskajasenica.sk"}]
[null,"Počet riadkov"]
[]
[]
["P. č.","Adresa miesta spotreby","Názov miesta spotreby","EIC kód","Meno subjektu\n\n( vypisujte, iba ak obstarávate pre viac subjektov)","Súčastný dodávateľ a platné zmluvy.",null,null,null,"Príkon spotrebiča\n(W)\n\n(ak je viac sptrebičov, tak uveďte súčet príkonov)","Poznámka"]
[null,null,null,null,null,"Meno\ndodávateľa","Trvanie súčasnej zmluvy do","Výpovedná lehota","Dátum účinnosti novej dodávky"]
["P.č.","Adresa miesta spotreby","Názov miesta spotreby","EIC kód","Meno subjektu","Meno dodávateľa","trvanie zmluvy","výpovedná lehota","Dátum účinosti","Príkon","Poznámka"]
[1]
[2]
[3]
[4]
[5]
[6]
[7]
[8]
[9]
[10]
["Pre pridanie ďalších riadkov, do bunky \"C13\" vpíšte počet riadkou a kliknite na tlačidlo\" Pridaj riadky\""]

{"sheet":"Zoznam subjektov","index":4,"n_rows":61,"n_cols":4,"rows_kept":61,"cut":false,"hidden":false,"merged":[[1,0,1,1],[6,3,13,8],[17,0,19,1]]}
[]
["Zoznam ďalších právnych subjektov"]
[]
["Počet subjektov"]
[]
["Subjekt č.",1]
["Meno subjektu",null,null,"Prosíme o správne a kompletné vyplnenie údajov. \n\nTieto dáta sú potrebné pri zadávaní zákazky do systému UVO a budú poskytnuté víťazovi obstarávania na urýchlenie prípravy zmlúv."]
["Ulica, číslo"]
["Sídlo"]
["PSČ"]
["IČO"]
["Štatutárny zástupca "]
["Telefón"]
["E-mail "]
["WEB"]
["."]
[]
["Pre pridanie ďalších subjektov, do bunky \"B4\" vpíšte počet subjektov a kliknite na tlačidlo\" Pridaj subjekty\""]
[]
[]
[]
[]
[]
[]
[]
[]
[]
[]
[]
[]
[]
[]
[]
[]
[]
[]
[]
[]
[]
[]
[]
[]
[]
[]
[]
[]
[]
[]
["."]
[]
[]
[]
[]
[]
[]
[]
[]
[]
[]
[]
["."]

{"sheet":"Výpočet PHZ","index":5,"n_rows":18,"n_cols":4,"rows_kept":18,"cut":false,"hidden":true,"merged":[[3,2,3,4],[4,2,4,3]]}
[]
[null,null,"Výpočet predbežnej hodnoty zákazky (PHZ)"]
[]
[null,"Zákazka:",{"$f":"\"Výber dodávateľa elektrickej energie – \"&CONCATENATE(Objednávka!C14,\" \",Objednávka!G12)","v":"Výber dodávateľa elektrickej energie – Obec Oravská Jasenica 3723/1"}]
[null,"Verejný obstarávateľ:",{"$f":"IF(Objednávka!C14=0,\"\",Objednávka!C14)","v":"Obec Oravská Jasenica"}]
[]
[null,"Celkový objem v MWh","PHZ bez DPH"]
[null,{"$f":"C11+D11","v":110.4},{"$f":"C15+D15","v":34757.07}]
[]
[null,null,{"$f":"IF(YEAR(Objednávka!H30)=1900,2024,YEAR(Objednávka!H30))","v":2024},{"$f":"IF(YEAR(Objednávka!H30)=1900,\"2023\",YEAR(Objednávka!H30))+1","v":2025}]
[null,"Objem v MWh",{"$f":"'Verejné osvetlenie'!O31+'Odberné miesta'!W30","v":55.2},{"$f":"'Verejné osvetlenie'!R31+'Odberné miesta'!AR30","v":55.2}]
[null,"Cena na burze\nEEX-PXE Slovakian Power Futures\nZo dňa 30.1.2023",172.37700000000001,177.28]
[null,"Poplatky za distribúciu vrátane spotrebnej dane (odhad)",100,100]
[null,"Prirážka dodávateľa max. (odhad)",40,40]
[null,"PHZ bez DPH",{"$f":"ROUND(SUM(C11*(C12+C13+C14)),2)","v":17243.21},17513.86]
[]
[null,"Dňa : 10.3.2023"]
[null,"Vypracoval: Ing. Fufaľ Vladimír"]